{"text_format":"3","workbook":"xlsx","n_sheets":6,"sheets":["ΠΕΡΙΟΔΟΣ","ΔΙΔΑΚΤΙΚΕΣ ΜΟΝΑΔΕΣ","ΠΡΟΫΠΟΛΟΓΙΣΜΟΣ","ΚΑΘΑΡΑ ΜΗΝΙΑΙΑ ΕΞΟΔΑ","ΕΞΟΔΑ ΠΕΡΙΟΔΟΥ","ΒΙΒΛΙΑ"],"not_rendered":{"defined_names":21},"read":"whole","date_system":"1900"}

{"sheet":"ΠΕΡΙΟΔΟΣ","index":0,"n_rows":29,"n_cols":9,"rows_kept":29,"merged":[[2,3,2,4]]}
[null,"ΠΡΟΓΡΑΜΜΑ ΜΑΘΗΜΑΤΩΝ"]
[null,"ΧΕΙΜΕΡΙΝΗ ΠΕΡΙΟΔΟΣ"]
[null,null,"ΩΡΑ ΕΝΑΡΞΗΣ","ΧΡΟΝΙΚΟ ΔΙΑΣΤΗΜΑ",null,"ΕΤΟΣ"]
[null,null,"09:00:00",60,"(σε λεπτά)"]
[null,"ΩΡΑ ","ΔΕΥ","ΤΡΙ","ΤΕΤ","ΠΕΜ","ΠΑΡ","ΣΑΒ","ΚΥΡ"]
[null,{"$f":"ΏραΈναρξης+TIME(0,(ROW(A1)-1)*ΧρονικόΔιάστημα,0)","v":"09:00:00"},"Πρωινό","Πρωινό","Πρωινό","Πρωινό","Πρωινό"]
[null,"10:00:00","Διοίκηση επιχειρήσεων: Κτίριο διαλέξεων B, Αίθ. 256"]
[null,"11:00:00",{"$nulls":3},"Φυσική: Εργαστήριο \nΚτίριο Ι, Αίθ. 309"]
[null,"12:00:00"]
[null,"13:00:00"]
[null,"14:00:00"]
[null,"15:00:00"]
[null,"16:00:00"]
[null,"17:00:00"]
[null,"18:00:00"]
[null,"19:00:00"]
[null,"20:00:00"]
[null,"21:00:00"]
[null,"22:00:00"]
[null,"23:00:00"]
[null,1]
[null,1.0416666666666665]
[null,1.0833333333333335]
[null,1.125]
[null,1.1666666666666665]
[null,1.2083333333333335]
[null,1.25]
[null,1.2916666666666665]
[null,1.3333333333333335]

{"sheet":"ΔΙΔΑΚΤΙΚΕΣ ΜΟΝΑΔΕΣ","index":1,"n_rows":17,"n_cols":8,"rows_kept":17}
[null,"ΠΑΝΕΠΙΣΤΗΜΙΟ"]
[null,"ΠΡΟΓΡΑΜΜΑΤΙΣΜΟΣ ΔΙΔΑΚΤΙΚΩΝ ΜΟΝΑΔΩΝ"]
[null,"Τίτλος πτυχίου",{"$f":"Έτος","v":"ΕΤΟΣ"}]
[null,"ΣΥΝΟΛΙΚΗ ΠΡΟΟΔΟΣ",null,"ΣΥΝΟΛΙΚΗ ΠΡΟΟΔΟΣ"]
[null,{"$f":"AVERAGE(Μαθήματα[ΒΑΘΜΟΣ])","v":3.5},{"$f":"IFERROR(TEXT(AVERAGEIF(Μαθήματα[ΟΛΟΚΛΗΡΩΘΗΚΑΝ],\"Ναι\",Μαθήματα[ΒΑΘΜΟΣ]),\"0.00\"),\"0.00\")&\" Τρέχων GPA\"","v":"004 Τρέχων GPA"},{"$f":"COUNTIF(Μαθήματα[ΟΛΟΚΛΗΡΩΘΗΚΑΝ],\"Ναι\")/COUNTA(Μαθήματα[ΤΙΤΛΟΣ ΜΑΘΗΜΑΤΟΣ])","v":0.6666666666666666},{"$f":"TEXT(COUNTIF(Μαθήματα[ΟΛΟΚΛΗΡΩΘΗΚΑΝ],\"Ναι\")/COUNTA(Μαθήματα[ΤΙΤΛΟΣ ΜΑΘΗΜΑΤΟΣ]),\"0%\")&\" Ολοκληρώθηκε το\"","v":"67% Ολοκληρώθηκε το"}]
[null,"Σημείωση: Η παρακάτω σύνοψη διδακτικών μονάδων συμπληρώνεται αυτόματα από τις καταχωρήσεις σας στον πίνακα \"Μαθήματα σχολής\" παρακάτω."]
[null,"ΑΠΑΙΤΗΣΗ","ΣΥΝΟΛΟ ΔΙΔΑΚΤΙΚΩΝ ΜΟΝΑΔΩΝ","ΕΠΙΤΕΥΧΘΗΚΑΝ","ΑΠΑΙΤΟΥΝΤΑΙ"]
[null,"Κύρια ειδίκευση",{"$f":"IF(SUMIF(Μαθήματα[ΑΠΑΙΤΗΣΗ],'ΔΙΔΑΚΤΙΚΕΣ ΜΟΝΑΔΕΣ'!$B8,Μαθήματα[ΔΙΔΑΚΤΙΚΕΣ ΜΟΝΑΔΕΣ])=0,\"0\",SUMIF(Μαθήματα[ΑΠΑΙΤΗΣΗ],'ΔΙΔΑΚΤΙΚΕΣ ΜΟΝΑΔΕΣ'!$B8,Μαθήματα[ΔΙΔΑΚΤΙΚΕΣ ΜΟΝΑΔΕΣ]))","v":4},{"$f":"SUMIFS(Μαθήματα[ΔΙΔΑΚΤΙΚΕΣ ΜΟΝΑΔΕΣ],Μαθήματα[ΑΠΑΙΤΗΣΗ],'ΔΙΔΑΚΤΙΚΕΣ ΜΟΝΑΔΕΣ'!$B8,Μαθήματα[ΟΛΟΚΛΗΡΩΘΗΚΑΝ],\"Ναι\")","v":4},{"$f":"SUMIF(Μαθήματα[ΑΠΑΙΤΗΣΗ],'ΔΙΔΑΚΤΙΚΕΣ ΜΟΝΑΔΕΣ'!$B8,Μαθήματα[ΔΙΔΑΚΤΙΚΕΣ ΜΟΝΑΔΕΣ])-SUMIFS(Μαθήματα[ΔΙΔΑΚΤΙΚΕΣ ΜΟΝΑΔΕΣ],Μαθήματα[ΑΠΑΙΤΗΣΗ],'ΔΙΔΑΚΤΙΚΕΣ ΜΟΝΑΔΕΣ'!$B8,Μαθήματα[ΟΛΟΚΛΗΡΩΘΗΚΑΝ],\"Ναι\")","v":0}]
[null,"Δευτερεύουσα ειδίκευση",{"$f":"IF(SUMIF(Μαθήματα[ΑΠΑΙΤΗΣΗ],'ΔΙΔΑΚΤΙΚΕΣ ΜΟΝΑΔΕΣ'!$B9,Μαθήματα[ΔΙΔΑΚΤΙΚΕΣ ΜΟΝΑΔΕΣ])=0,\"0\",SUMIF(Μαθήματα[ΑΠΑΙΤΗΣΗ],'ΔΙΔΑΚΤΙΚΕΣ ΜΟΝΑΔΕΣ'!$B9,Μαθήματα[ΔΙΔΑΚΤΙΚΕΣ ΜΟΝΑΔΕΣ]))","v":3},{"$f":"SUMIFS(Μαθήματα[ΔΙΔΑΚΤΙΚΕΣ ΜΟΝΑΔΕΣ],Μαθήματα[ΑΠΑΙΤΗΣΗ],'ΔΙΔΑΚΤΙΚΕΣ ΜΟΝΑΔΕΣ'!$B9,Μαθήματα[ΟΛΟΚΛΗΡΩΘΗΚΑΝ],\"Ναι\")","v":0},{"$f":"SUMIF(Μαθήματα[ΑΠΑΙΤΗΣΗ],'ΔΙΔΑΚΤΙΚΕΣ ΜΟΝΑΔΕΣ'!$B9,Μαθήματα[ΔΙΔΑΚΤΙΚΕΣ ΜΟΝΑΔΕΣ])-SUMIFS(Μαθήματα[ΔΙΔΑΚΤΙΚΕΣ ΜΟΝΑΔΕΣ],Μαθήματα[ΑΠΑΙΤΗΣΗ],'ΔΙΔΑΚΤΙΚΕΣ ΜΟΝΑΔΕΣ'!$B9,Μαθήματα[ΟΛΟΚΛΗΡΩΘΗΚΑΝ],\"Ναι\")","v":3}]
[null,"Μάθημα επιλογής",{"$f":"IF(SUMIF(Μαθήματα[ΑΠΑΙΤΗΣΗ],'ΔΙΔΑΚΤΙΚΕΣ ΜΟΝΑΔΕΣ'!$B10,Μαθήματα[ΔΙΔΑΚΤΙΚΕΣ ΜΟΝΑΔΕΣ])=0,\"0\",SUMIF(Μαθήματα[ΑΠΑΙΤΗΣΗ],'ΔΙΔΑΚΤΙΚΕΣ ΜΟΝΑΔΕΣ'!$B10,Μαθήματα[ΔΙΔΑΚΤΙΚΕΣ ΜΟΝΑΔΕΣ]))","v":2},{"$f":"SUMIFS(Μαθήματα[ΔΙΔΑΚΤΙΚΕΣ ΜΟΝΑΔΕΣ],Μαθήματα[ΑΠΑΙΤΗΣΗ],'ΔΙΔΑΚΤΙΚΕΣ ΜΟΝΑΔΕΣ'!$B10,Μαθήματα[ΟΛΟΚΛΗΡΩΘΗΚΑΝ],\"Ναι\")","v":2},{"$f":"SUMIF(Μαθήματα[ΑΠΑΙΤΗΣΗ],'ΔΙΔΑΚΤΙΚΕΣ ΜΟΝΑΔΕΣ'!$B10,Μαθήματα[ΔΙΔΑΚΤΙΚΕΣ ΜΟΝΑΔΕΣ])-SUMIFS(Μαθήματα[ΔΙΔΑΚΤΙΚΕΣ ΜΟΝΑΔΕΣ],Μαθήματα[ΑΠΑΙΤΗΣΗ],'ΔΙΔΑΚΤΙΚΕΣ ΜΟΝΑΔΕΣ'!$B10,Μαθήματα[ΟΛΟΚΛΗΡΩΘΗΚΑΝ],\"Ναι\")","v":0}]
[null,"Γενικές σπουδές",{"$f":"IF(SUMIF(Μαθήματα[ΑΠΑΙΤΗΣΗ],'ΔΙΔΑΚΤΙΚΕΣ ΜΟΝΑΔΕΣ'!$B11,Μαθήματα[ΔΙΔΑΚΤΙΚΕΣ ΜΟΝΑΔΕΣ])=0,\"0\",SUMIF(Μαθήματα[ΑΠΑΙΤΗΣΗ],'ΔΙΔΑΚΤΙΚΕΣ ΜΟΝΑΔΕΣ'!$B11,Μαθήματα[ΔΙΔΑΚΤΙΚΕΣ ΜΟΝΑΔΕΣ]))","v":"0"},{"$f":"SUMIFS(Μαθήματα[ΔΙΔΑΚΤΙΚΕΣ ΜΟΝΑΔΕΣ],Μαθήματα[ΑΠΑΙΤΗΣΗ],'ΔΙΔΑΚΤΙΚΕΣ ΜΟΝΑΔΕΣ'!$B11,Μαθήματα[ΟΛΟΚΛΗΡΩΘΗΚΑΝ],\"Ναι\")","v":0},{"$f":"SUMIF(Μαθήματα[ΑΠΑΙΤΗΣΗ],'ΔΙΔΑΚΤΙΚΕΣ ΜΟΝΑΔΕΣ'!$B11,Μαθήματα[ΔΙΔΑΚΤΙΚΕΣ ΜΟΝΑΔΕΣ])-SUMIFS(Μαθήματα[ΔΙΔΑΚΤΙΚΕΣ ΜΟΝΑΔΕΣ],Μαθήματα[ΑΠΑΙΤΗΣΗ],'ΔΙΔΑΚΤΙΚΕΣ ΜΟΝΑΔΕΣ'!$B11,Μαθήματα[ΟΛΟΚΛΗΡΩΘΗΚΑΝ],\"Ναι\")","v":0}]
[null,"Σύνολο",{"$f":"SUBTOTAL(109,'ΔΙΔΑΚΤΙΚΕΣ ΜΟΝΑΔΕΣ'!$C$8:$C$11)","v":9},{"$f":"SUBTOTAL(109,'ΔΙΔΑΚΤΙΚΕΣ ΜΟΝΑΔΕΣ'!$D$8:$D$11)","v":6},{"$f":"SUBTOTAL(109,'ΔΙΔΑΚΤΙΚΕΣ ΜΟΝΑΔΕΣ'!$E$8:$E$11)","v":3}]
[null,"Μαθήματα"]
[null,"ΤΙΤΛΟΣ ΜΑΘΗΜΑΤΟΣ","ΑΡ. ΜΑΘΗΜΑΤΟΣ","ΑΠΑΙΤΗΣΗ","ΔΙΔΑΚΤΙΚΕΣ ΜΟΝΑΔΕΣ","ΟΛΟΚΛΗΡΩΘΗΚΑΝ","ΒΑΘΜΟΣ","ΠΕΡΙΟΔΟΣ"]
[null,"Μάθημα 1","Αριθμός","Κύρια ειδίκευση",4,"Ναι",{"v":4,"d":"4.0"},"Περίοδος 1"]
[null,"Μάθημα 2","Αριθμός","Δευτερεύουσα ειδίκευση",3,"Όχι",null,"Περίοδος 1"]
[null,"Μάθημα 3","Αριθμός","Μάθημα επιλογής",2,"Ναι",{"v":3,"d":"3.0"},"Περίοδος 1"]

{"sheet":"ΠΡΟΫΠΟΛΟΓΙΣΜΟΣ","index":2,"n_rows":15,"n_cols":4,"rows_kept":15}
[null,{"$f":"Σχολή","v":"ΠΑΝΕΠΙΣΤΗΜΙΟ"}]
[null,"ΠΑΡΑΚΟΛΟΥΘΗΣΗ ΠΡΟΫΠΟΛΟΓΙΣΜΟΥ"]
[null,"Ο προϋπολογισμός μου",{"$f":"Έτος","v":"ΕΤΟΣ"}]
[null,"ΠΟΣΟΣΤΟ ΕΣΟΔΩΝ ΠΟΥ ΞΟΔΕΥΤΗΚΕ"]
[null,{"$f":"ΚΑΘΑΡΑ_ΜΗΝΙΑΙΑ_ΕΞΟΔΑ/ΚΑΘΑΡΑ_ΜΗΝΙΑΙΑ_ΕΣΟΔΑ","v":{"v":0.7454545454545455,"d":"75%"}}]
[null,{"$f":"B5","v":0.7454545454545455}]
[null,"ΚΑΘΑΡΑ ΜΗΝΙΑΙΑ ΕΣΟΔΑ","ΚΑΘΑΡΑ ΜΗΝΙΑΙΑ ΕΞΟΔΑ","ΥΠΟΛΟΙΠΟ"]
[null,{"$f":"C10","v":{"v":2750,"d":"2,750 €"}},{"$f":"'ΚΑΘΑΡΑ ΜΗΝΙΑΙΑ ΕΞΟΔΑ'!C4+'ΕΞΟΔΑ ΠΕΡΙΟΔΟΥ'!D4","v":{"v":2050,"d":"2,050 €"}},{"$f":"ΚΑΘΑΡΑ_ΜΗΝΙΑΙΑ_ΕΣΟΔΑ-ΚΑΘΑΡΑ_ΜΗΝΙΑΙΑ_ΕΞΟΔΑ","v":{"v":700,"d":"700 €"}}]
[null,"Μήνες περιόδου",4]
[null,"ΜΗΝΙΑΙΑ ΕΣΟΔΑ",{"$f":"SUM(Μηνιαία_έσοδα[ΠΟΣΟ])","v":{"v":2750,"d":"2,750 €"}}]
[null,"ΕΙΔΟΣ","ΠΟΣΟ"]
[null,"Σταθερά έσοδα",{"v":1500,"d":"1,500 €"}]
[null,"Οικονομική βοήθεια",{"v":500,"d":"500 €"}]
[null,"Δάνεια",{"v":500,"d":"500 €"}]
[null,"Άλλα έσοδα",{"v":250,"d":"250 €"}]

{"sheet":"ΚΑΘΑΡΑ ΜΗΝΙΑΙΑ ΕΞΟΔΑ","index":3,"n_rows":15,"n_cols":3,"rows_kept":15}
[null,{"$f":"Σχολή","v":"ΠΑΝΕΠΙΣΤΗΜΙΟ"}]
[null,"ΠΑΡΑΚΟΛΟΥΘΗΣΗ ΠΡΟΫΠΟΛΟΓΙΣΜΟΥ"]
[null,"Μηνιαία έξοδα",{"$f":"Έτος","v":"ΕΤΟΣ"}]
[null,"ΜΗΝΙΑΙΑ ΕΞΟΔΑ",{"$f":"SUM(Μηνιαία_έξοδα[ΠΟΣΟ])","v":{"v":1675,"d":"1,675 €"}}]
[null,"ΕΙΔΟΣ","ΠΟΣΟ"]
[null,"Ενοίκιο",{"v":300,"d":"300 €"}]
[null,"Υπηρεσίες κοινής ωφελείας",{"v":50,"d":"50 €"}]
[null,"Κινητό",{"v":75,"d":"75 €"}]
[null,"Ψώνια",{"v":250,"d":"250 €"}]
[null,"Έξοδα αυτοκινήτου",{"v":50,"d":"50 €"}]
[null,"Φοιτητικά δάνεια",{"v":500,"d":"500 €"}]
[null,"Πιστωτικές κάρτες",{"v":275,"d":"275 €"}]
[null,"Ασφάλιση",{"v":125,"d":"125 €"}]
[null,"Διασκέδαση",{"v":50,"d":"50 €"}]
[null,"Διάφορα",{"v":0,"d":"0 €"}]

{"sheet":"ΕΞΟΔΑ ΠΕΡΙΟΔΟΥ","index":4,"n_rows":11,"n_cols":4,"rows_kept":11}
[null,{"$f":"Σχολή","v":"ΠΑΝΕΠΙΣΤΗΜΙΟ"}]
[null,"ΠΑΡΑΚΟΛΟΥΘΗΣΗ ΠΡΟΫΠΟΛΟΓΙΣΜΟΥ"]
[null,"Εξοδα Περιοδου",{"$f":"Έτος","v":"ΕΤΟΣ"}]
[null,"ΕΞΟΔΑ ΠΕΡΙΟΔΟΥ (Σύνολο/Ανά μήνα)",{"$f":"SUM(ΈξοδαΠεριόδου[ΠΟΣΟ])","v":{"v":1500,"d":"1,500 €"}},{"$f":"SUM(ΈξοδαΠεριόδου[ΑΝΑ ΜΗΝΑ])","v":{"v":375,"d":"375 €"}}]
[null,"ΕΙΔΟΣ","ΠΟΣΟ","ΑΝΑ ΜΗΝΑ"]
[null,"Δίδακτρα",{"v":750,"d":"750 €"},{"$f":"ΈξοδαΠεριόδου[[#This Row],[ΠΟΣΟ]]/Μήνες_περιόδου","v":{"v":187.5,"d":"188 €"}}]
[null,"Χρεώσεις εργαστηρίου",{"v":250,"d":"250 €"},{"$f":"ΈξοδαΠεριόδου[[#This Row],[ΠΟΣΟ]]/Μήνες_περιόδου","v":{"v":62.5,"d":"63 €"}}]
[null,"Βιβλία",{"v":500,"d":"500 €"},{"$f":"ΈξοδαΠεριόδου[[#This Row],[ΠΟΣΟ]]/Μήνες_περιόδου","v":{"v":125,"d":"125 €"}}]
[null,"Προκαταβολές",{"v":0,"d":"0 €"},{"$f":"ΈξοδαΠεριόδου[[#This Row],[ΠΟΣΟ]]/Μήνες_περιόδου","v":{"v":0,"d":"0 €"}}]
[null,"Μετακινήσεις",{"v":0,"d":"0 €"},{"$f":"ΈξοδαΠεριόδου[[#This Row],[ΠΟΣΟ]]/Μήνες_περιόδου","v":{"v":0,"d":"0 €"}}]
[null,"Άλλες χρεώσεις",{"v":0,"d":"0 €"},{"$f":"ΈξοδαΠεριόδου[[#This Row],[ΠΟΣΟ]]/Μήνες_περιόδου","v":{"v":0,"d":"0 €"}}]

{"sheet":"ΒΙΒΛΙΑ","index":5,"n_rows":7,"n_cols":7,"rows_kept":7}
[null,{"$f":"Σχολή","v":"ΠΑΝΕΠΙΣΤΗΜΙΟ"}]
[null,"ΠΑΡΑΚΟΛΟΥΘΗΣΗ ΒΙΒΛΙΩΝ"]
[null,"Λίστα βιβλίων"]
[null,"ΤΙΤΛΟΣ","ΣΥΓΓΡΑΦΕΑΣ","ΜΑΘΗΜΑ","ΣΗΜΕΙΟ ΑΓΟΡΑΣ","ISBN","ΣΗΜΕΙΩΣΕΙΣ"]
[null,"Τίτλος βιβλίου","Συγγραφέας","Μάθημα","Τοποθεσία","Αριθμός"]
[null,"Τίτλος βιβλίου","Συγγραφέας","Μάθημα","Τοποθεσία","Αριθμός"]
[null,"Τίτλος βιβλίου","Συγγραφέας","Μάθημα","Τοποθεσία","Αριθμός"]